Cogmind - Beta 11.1 --- EXPLORER MODE // 2022.07.20 @ 00:58:15 Player: Rainynight Result: Destroyed by G-67 Veteran with Plasma Rifle Performance ------------- Evolutions (6) 3000 Regions Visited (15) 3000 Robots Destroyed (167) 835 Value Destroyed (7308) 7308 Prototype IDs (12) 240 Alien Tech Used (0) 0 Bonus (3527) 3527 TOTAL SCORE: 17910 Bonus ------- High Alert Combat Kills 113 Follower Combat Kills 1250 Network Hubs Disabled 200 Met Warlord at Base 500 MAIN.C Attacked Warlord 500 Warlord Defense Kills 654 Built Enhanced Grunts 300 A7 Reached Mainframe 300 Friendly Fire -290 Cogmind --------- Core Integrity 0/1150 Matter 300/300 Energy 600/600 System Corruption 18% Temperature Cool (18) Movement Core (400) Ox7 Location -4/Hub_04(d) Parts ------- > --- POWER (2) -------- (None) > --- PROPULSION (4) --- (None) > --- UTILITY (11) ----- Large Storage Unit Advanced Energy Well Advanced Signal Interpreter Improved Target Analyzer > --- WEAPON (3) ------- (None) > --- INVENTORY (15) --- Light Antimatter Reactor Large Storage Unit Advanced Signal Interpreter Improved Terrain Scanner Improved Terrain Scan Processor Wave Gun Phase Gun Power Maul Peak State ------------ > --- POWER ------------ F-cell Engine Antimatter Reactor > --- PROPULSION ------- Improved Treads Medium Treads Medium Treads Armored Medium Treads > --- UTILITY ---------- Advanced Cooling System Advanced Cooling System Large Storage Unit Advanced Signal Interpreter Improved Target Analyzer Advanced Particle Charger Centrium Medium Armor Plating Heavy Reflective Plating Advanced Focal Shield Point Defense Array > --- WEAPON ----------- Advanced Variable Charge Gun Quantum Rifle Matter Neutralizer > --- INVENTORY -------- Reinforced Fission Core Light Antimatter Reactor Medium Treads Advanced Heat Sink Large Storage Unit Advanced Energy Well Advanced Signal Interpreter Improved Terrain Scanner Improved Terrain Scan Processor Layered Medium Armor Plating Plasma Rifle Thermic Laser Wave Gun Wave Gun Power Maul [Rating: 122] Favorites ----------- Power F-cell Engine Engine F-cell Engine Power Core Light Nuclear Core Reactor Antimatter Reactor Propulsion Armored Medium Treads Treads Armored Medium Treads Utility Advanced Cooling System Device Advanced Cooling System Storage Large Storage Unit Processor Improved Signal Interpreter Protection Utility Shielding Weapon Lightning Gun Energy Gun Lightning Gun Energy Cannon Disruptor Cannon Ballistic Gun Light Assault Rifle Impact Weapon Power Maul Slashing Weapon Chainsword Special Melee Weapon Advanced Datajack Build | -11 -10 -9 -8 -7 -6 -5 -5 -5 -5 -4 -4 -4 -4 -4 -4 ------- Run | Scr Mat Mat Mat Fac Fac Fac Upp Upp War Pro Fac Ext Cet Arc Hub Slots Evolved 13 | . 1 2 2 2 2 2 . . . . 2 . . . . Power 1 | . . . . . . . . . . . 1 . . . . Propulsion 2 | . . . . 2 . . . . . . . . . . . Utility 9 | . . 2 2 . 2 2 . . . . 1 . . . . Weapon 1 | . 1 . . . . . . . . . . . . . . Parts Attached 187 | 7 5 11 5 3 23 27 5 2 11 3 13 42 9 6 15 Power 11 | 1 1 1 . . 2 . . . . . 1 3 1 . 1 Engine 5 | 1 . 1 . . 2 . . . . . . 1 . . . Core 2 | . 1 . . . . . . . . . . . . . 1 Reactor 4 | . . . . . . . . . . . 1 2 1 . . Propulsion 35 | 2 . 2 2 2 2 3 . 1 6 . . 11 . 1 3 Treads 35 | 2 . 2 2 2 2 3 . 1 6 . . 11 . 1 3 Leg . | . . . . . . . . . . . . . . . . Wheel . | . . . . . . . . . . . . . . . . Hover . | . . . . . . . . . . . . . . . . Flight . | . . . . . . . . . . . . . . . . Utility 65 | 2 1 2 3 . 11 7 3 . 2 1 2 16 7 2 6 Device 32 | . 1 1 1 . 6 2 1 . 1 . . 10 4 2 3 Storage 4 | 1 . . 1 . . . . . . . . . 1 . 1 Processor 7 | 1 . . . . 3 . . . . 1 1 1 . . . Hackware . | . . . . . . . . . . . . . . . . Protection 22 | . . 1 1 . 2 5 2 . 1 . 1 5 2 . 2 Artifact . | . . . . . . . . . . . . . . . . Weapon 76 | 2 3 6 . 1 8 17 2 1 3 2 10 12 1 3 5 Energy Gun 52 | . 2 6 . 1 6 14 1 . 3 1 5 7 1 2 3 Energy Cannon 13 | . . . . . 2 3 . 1 . . 3 4 . . . Ballistic Gun 4 | 2 1 . . . . . . . . . . . . . 1 Ballistic Cannon . | . . . . . . . . . . . . . . . . Launcher . | . . . . . . . . . . . . . . . . Special Weapon . | . . . . . . . . . . . . . . . . Impact Weapon 5 | . . . . . . . . . . 1 2 1 . . 1 Slashing Weapon 1 | . . . . . . . 1 . . . . . . . . Piercing Weapon . | . . . . . . . . . . . . . . . . Special Melee Weapon 1 | . . . . . . . . . . . . . . 1 . Unidentified Prototypes 6 | . . 1 . . 1 . . . 1 . . . 3 . . Corrupted Parts 4 | . . . . . 1 . . . . . . 3 . . . System Corruption 10 | . . . . . 1 . . . . . . 9 . . . Parts Lost 41 | . . . . . 1 2 . . . . . 16 . . 22 Power 6 | . . . . . 1 . . . . . . 2 . . 3 Propulsion 6 | . . . . . . . . . . . . 1 . . 5 Utility 19 | . . . . . . 1 . . . . . 8 . . 10 Weapon 10 | . . . . . . 1 . . . . . 5 . . 4 Highest Loss Streak 22 | . . . . . 1 1 . . . . . 13 . . 22 To Critical Strikes . | . . . . . . . . . . . . . . . . Average Slot Usage (%) 92 | . 94 99 100 100 97 88 88 87 88 94 95 91 94 94 86 Engine 4 | . 5 2 8 7 3 5 5 5 5 5 5 5 5 5 3 Reactor 1 | . . . . . . . . . . . 5 5 5 5 4 Treads 19 | . 25 20 16 28 25 16 16 16 16 22 20 18 20 20 17 Device 21 | . 5 20 25 21 23 22 22 22 22 22 20 23 25 25 20 Storage 5 | . 12 10 8 7 6 5 5 5 5 5 5 5 5 5 6 Processor 6 | . 6 . . . 6 5 5 5 5 5 10 11 10 10 10 Protection 12 | . . 10 16 14 13 16 16 16 16 16 15 7 8 10 9 Energy Gun 13 | . 13 29 25 21 16 15 15 11 10 10 9 8 9 9 8 Energy Cannon 3 | . . . . . 1 . . 4 5 5 5 6 5 5 4 Naked Turns . | . . . . . . . . . . . . . . . . Heaviest Build 106 | 16 21 27 39 39 52 71 73 77 78 78 100 101 105 104 106 Greatest Support 128 | 40 40 40 43 86 104 128 128 128 128 109 109 124 101 106 106 Greatest Overweight (x) 14 | 4 . . . . . . . . . . . 1 1 1 14 Average Overweight (x) . | . . . . . . . . . . . . . . . . Largest Inventory Capacity 15 | 10 10 10 15 15 15 15 15 15 15 15 15 15 15 15 15 Average Capacity 14 | 9 10 10 14 15 15 15 15 15 15 15 15 15 15 15 15 Most Carried 15 | 4 10 10 13 12 15 15 15 15 15 15 15 15 15 15 15 Average Carried 13 | 2 8 9 10 11 14 14 14 14 14 15 13 12 14 15 13 Final Capacity 15 | 10 10 10 15 15 15 15 15 15 15 15 15 15 15 15 15 Final Carried 15 | 4 10 10 13 12 15 15 15 15 15 15 15 15 15 15 8 Class Distribution -------------------- 45% | Scavenger-Tank 27% | Hacker-Tank 12% | Hacker-Skirmisher 8% | Scavenger-Skirmisher Dominant Class ---------------- Hacker-Gunner | -10/Materials Hacker-Tank | -9/Materials Hacker-Tank | -8/Materials Hacker-Tank | -7/Factory Hacker-Skirmisher | -6/Factory Hacker-Skirmisher | -5/Factory Scavenger-Tank | -5/Upper Caves Hacker-Tank | -5/Upper Caves Hacker-Tank | -5/Warlord Scavenger-Tank | -4/Proximity Caves Scavenger-Tank | -4/Factory Scavenger-Skirmisher | -4/Extension Scavenger-Tank | -4/Cetus Scavenger-Tank | -4/Archives Scavenger-Tank | -4/Hub_04(d) Resources | -11 -10 -9 -8 -7 -6 -5 -5 -5 -5 -4 -4 -4 -4 -4 -4 ----------- Run | Scr Mat Mat Mat Fac Fac Fac Upp Upp War Pro Fac Ext Cet Arc Hub Matter Collected 2214 | 255 131 107 55 30 249 271 103 66 116 38 130 426 104 54 79 Remotely . | . . . . . . . . . . . . . . . . Salvage Created 10262 | . 338 815 348 . 1553 1603 280 . 301 . 721 3386 428 22 467 Parts 380 | . 27 62 13 . 59 71 6 . 6 . 30 80 18 . 8 Haulers Intercepted 7 | . 1 1 1 . 1 1 . . . . . 2 . . . Recyclers Shooed 4 | . . . 1 . . . . . . . 1 2 . . . Parts Field Recycled . | . . . . . . . . . . . . . . . . Retrieved Matter . | . . . . . . . . . . . . . . . . Parts Self-Destructed . | . . . . . . . . . . . . . . . . Prevented . | . . . . . . . . . . . . . . . . Kills | -11 -10 -9 -8 -7 -6 -5 -5 -5 -5 -4 -4 -4 -4 -4 -4 ------- Run | Scr Mat Mat Mat Fac Fac Fac Upp Upp War Pro Fac Ext Cet Arc Hub Combat Hostiles Destroyed 111 | . 6 14 3 . 13 18 5 . 5 . 7 29 8 . 3 Guns 51 | . 6 12 3 . 3 5 3 . 3 . 1 7 5 . 3 Cannons 16 | . . . . . 1 1 . . . . 2 9 3 . . AOE 12 | . . 2 . . 4 5 . . . . . 1 . . . Classes Destroyed 16 | . 4 5 1 . 2 2 . . 1 . . . 1 . . Worker 3 | . 1 . . . . 2 . . . . . . . . . Builder 8 | . . 3 . . 1 1 . . . . . 3 . . . Hauler 7 | . 1 1 1 . 1 1 . . . . . 2 . . . Recycler 20 | . . 1 1 . 4 2 . . . . 1 9 . . 2 Mechanic 1 | . . . . . 1 . . . . . . . . . . Operator 2 | . . 1 . . . . . . . . . . . 1 . Watcher 15 | . 3 2 1 . 3 3 . . . . 1 2 . . . Swarmer 12 | . . 5 . . . . 2 . . . . 3 2 . . Grunt 55 | . 6 4 2 . 12 3 2 . 4 . 3 16 2 . 1 Brawler 2 | . . . . . . 1 . . . . . . 1 . . Duelist 1 | . . . . . . . . . . . . . 1 . . Sentry 16 | . . 5 . . . 1 1 . . . 2 5 . . 2 Hunter 9 | . . . 1 . . 6 . . . . . 2 . . . Programmer 10 | . . . . . 1 6 . . . . 2 1 . . . Behemoth 3 | . . . . . . 1 . . . . . 2 . . . Cetus Guard 2 | . . . . . . . . . . . . . 2 . . Striker 1 | . . . . . . . . . 1 . . . . . . Best Kill Streak 13 | . 3 6 2 . 6 7 4 . 3 . 3 13 4 1 2 Combat Bots Only 10 | . 2 5 2 . 3 4 4 . 3 . 3 10 4 . 2 Max Kills in Single Turn 6 | . 1 2 1 . 3 6 2 . 1 . 1 2 1 1 1 Gunslinging 1 | . . . . . . . 1 . . . . . . . . Exploded 3 | . . 1 . . 2 3 . . . . . 1 . . . Melee . | . . . . . . . . . . . . . . . . Uniques/NPCs Destroyed . | . . . . . . . . . . . . . . . . Combat | -11 -10 -9 -8 -7 -6 -5 -5 -5 -5 -4 -4 -4 -4 -4 -4 -------- Run | Scr Mat Mat Mat Fac Fac Fac Upp Upp War Pro Fac Ext Cet Arc Hub Damage Taken 10757 | . 108 256 47 . 343 1167 111 11 213 . 173 3955 86 8 4279 Core 1418 | . 36 62 8 . 45 100 . . 14 . . 247 8 . 898 Absorbed by Shields 267 | . . . . . . . . . 179 . . 15 73 . . Reduced by Siege Mode 203 | . . . . . . . . . . . . 203 . . . Redirected to Shielding 125 | . . 9 3 . 27 45 2 . 2 . . 37 . . . Regen/Repaired (Parts) 542 | . . . . . 24 518 . . . . . . . . . Core Remaining (%) 92 | 100 85 84 98 100 94 . . . . 88 . . . . . Volleys Fired 356 | . 30 29 9 . 35 59 8 . 17 . 17 107 17 6 22 Largest 3 | . 3 3 3 . 3 3 3 . 3 . 3 3 3 3 3 Hottest 279 | . 125 135 135 . 165 204 175 . 191 . 245 276 276 266 279 Shots Fired 998 | . 73 87 27 . 101 164 25 1 47 . 51 300 46 16 60 Gun 725 | . 73 87 27 . 92 138 25 . 31 . 31 152 18 10 41 Cannon 273 | . . . . . 9 26 . 1 16 . 20 148 28 6 19 Launcher . | . . . . . . . . . . . . . . . . Special . | . . . . . . . . . . . . . . . . Kinetic 52 | . 47 2 . . . . . . . . . . . . 3 Thermal 434 | . 26 4 . . 9 52 . . . . 6 218 46 16 57 Explosive . | . . . . . . . . . . . . . . . . Electromagnetic 512 | . . 81 27 . 92 112 25 1 47 . 45 82 . . . Robot Hit Streak 50 | . 35 22 23 . 21 47 48 . 20 . 50 46 12 6 13 Robot Miss Streak 5 | . 1 2 1 . 1 2 1 . 2 . 1 2 3 2 5 Penetration Max . | . . . . . . . . . . . . . . . . Secondary Targets 2 | . . 1 . . . . 1 . . . . . . . . Max Gunslinging Chain 1 | . . 1 . . . . 1 . . . . . . . . Shots Hit Robots 774 | . 61 63 22 . 67 135 21 . 36 . 46 248 31 10 34 Core Hits 322 | . 22 43 18 . 40 46 8 . 13 . 17 81 16 6 12 Critical Kills 2 | . . . . . 1 . . . . . . 1 . . . Critical Parts Destroyed . | . . . . . . . . . . . . . . . . Critical Strikes 35 | . . . . . 6 5 2 . 1 . 2 18 1 . . Burn 16 | . . . . . . 3 . . . . . 12 1 . . Meltdown 2 | . . . . . 1 . . . . . . 1 . . . Corrupt 17 | . . . . . 5 2 2 . 1 . 2 5 . . . Melee Attacks 16 | . . . . . . . 1 . . 1 2 8 . . 4 Impact 15 | . . . . . . . . . . 1 2 8 . . 4 Slashing 1 | . . . . . . . 1 . . . . . . . . Piercing . | . . . . . . . . . . . . . . . . Sneak Attacks . | . . . . . . . . . . . . . . . . Combat Hostiles . | . . . . . . . . . . . . . . . . Follow-up Attacks . | . . . . . . . . . . . . . . . . Damage Inflicted 20717 | . 683 1118 497 . 1833 3963 420 . 515 . 1266 6837 1335 753 1497 Guns 11083 | . 683 887 425 . 1232 2151 420 . 381 . 558 2762 493 116 975 Cannons 6522 | . . . . . 190 535 . . 134 . 412 3664 842 255 490 Explosions 2608 | . . 231 65 . 407 1270 . . . . 296 339 . . . Melee . | . . . . . . . . . . . . . . . . Ramming 504 | . . . 7 . 4 7 . . . . . 72 . 382 32 Kinetic 370 | . 363 7 . . . . . . . . . . . . . Thermal 12497 | . 320 261 65 . 597 2275 . . . . 517 5291 1335 371 1465 Explosive . | . . . . . . . . . . . . . . . . Electromagnetic 7346 | . . 850 425 . 1232 1681 420 . 515 . 749 1474 . . . Impact . | . . . . . . . . . . . . . . . . Slashing . | . . . . . . . . . . . . . . . . Piercing . | . . . . . . . . . . . . . . . . Highest Corruption 18 | . . . . . 2 5 5 5 5 2 . 8 5 5 18 Average Corruption 3 | . . . . . 1 2 5 5 2 2 . 4 5 4 4 Corruption Purged 10 | . . . . . . . . . . . . 5 . 5 . Corruption Blocked 8 | . . . . . . . . . 8 . . . . . . Effects 114 | . . . . . 11 12 21 17 5 7 . 27 10 3 1 Message Errors 21 | . . . . . 5 3 4 3 2 . . 2 2 . . Matter Fused 27 | . . . . . 1 1 7 5 1 1 . 8 1 1 1 Heat Flow Errors 13 | . . . . . 2 2 1 2 . 2 . 4 . . . Energy Discharges 23 | . . . . . . 3 4 2 . 4 . 6 2 2 . Data Loss (minor) 15 | . . . . . 2 1 3 3 1 . . 3 2 . . Data Loss (major) 6 | . . . . . . 2 1 1 . . . 1 1 . . Misfires 4 | . . . . . 1 . 1 1 . . . 1 . . . Alerts 2 | . . . . . . . . . . . . . 2 . . Weapon Failures 3 | . . . . . . . . . 1 . . 2 . . . Overload Shots . | . . . . . . . . . . . . . . . . Overflow Damage 512 | . . . . . 28 91 . . . . 25 172 46 116 34 Projectiles 307 | . . . . . 10 3 . . . . 25 172 46 17 34 Explosions 106 | . . . . . 18 88 . . . . . . . . . Melee 99 | . . . . . . . . . . . . . . 99 . Knockbacks 6 | . . . . . . . . . . . . . . 5 1 Impact 6 | . . . . . . . . . . . . . . 5 1 Kinetic . | . . . . . . . . . . . . . . . . Secondary . | . . . . . . . . . . . . . . . . Self-Inflicted Damage 202 | . . 69 . . 88 . . . . . . 45 . . . Shots 8 | . . 3 . . 4 . . . . . . 1 . . . Rammed 38 | . . . 2 . . 2 . . . . . 4 . 28 2 Targets Rammed 41 | . . . 2 . 1 2 . . . . . 5 . 29 2 Kicked . | . . . . . . . . . . . . . . . . Crushed 3 | . . . . . 1 . . . . . . 1 . 1 . Highest Temperature 291 | . 225 30 4 . 291 183 153 158 111 137 129 166 198 66 259 Average Temperature 55 | . 56 10 4 . 60 47 66 70 58 65 64 23 63 35 101 Received Heat Transfer 3522 | . 99 102 18 . 183 114 45 . 58 . 63 1502 . . 1338 Effects 1 | . . . . . 1 . . . . . . . . . . Interference 1 | . . . . . 1 . . . . . . . . . . Siege Activations 2 | . . . . . . . . . 1 . . 1 . . . Total Turns 71 | . . . . . . . . . 20 . . 51 . . . Longest Duration 51 | . . . . . . . . . 20 . . 51 . . . Robots Corrupted 26 | . . . . . 4 6 2 . 2 . 4 8 . . . Combat Hostiles 25 | . . . . . 4 6 2 . 2 . 4 7 . . . Parts Fried 64 | . . 3 5 . 10 22 3 . 1 . 3 16 1 . . Impact Corruptions 9 | . . . . . . . . . . . . . . 9 . Robots Melted 8 | . . . . . 1 1 . . . . . 6 . . . Combat Hostiles 7 | . . . . . 1 1 . . . . . 5 . . . Parts Melted 64 | . 1 1 . . 3 20 . . . . . 32 . . 7 Heat Transferred 16515 | . 744 412 50 . 650 2699 . . . . 335 8517 1406 370 1332 Parts Sabotaged . | . . . . . . . . . . . . . . . . Parts Stolen . | . . . . . . . . . . . . . . . . Parts Stripped . | . . . . . . . . . . . . . . . . Power Chain Reactions 19 | . . 7 2 . 3 4 . . . . 1 2 . . . Missiles Intercepted . | . . . . . . . . . . . . . . . . Alert | -11 -10 -9 -8 -7 -6 -5 -5 -5 -5 -4 -4 -4 -4 -4 -4 ------- Run | Scr Mat Mat Mat Fac Fac Fac Upp Upp War Pro Fac Ext Cet Arc Hub Peak Influence 500 | . 275 434 148 58 234 295 . . . . 183 499 500 164 420 Initial 100 | . . 83 . 48 20 56 . . . . . 18 100 56 . Average 143 | . 151 196 52 55 103 147 . . . . 57 189 335 67 113 Maximum Alert Level 2 | . 1 2 . . 1 1 . . . . . 2 2 . 2 Low Security (%) 72 | 100 63 63 100 100 83 86 . . . . 100 44 7 100 73 Level 1 22 | . 36 29 . . 16 13 . . . . . 52 35 . 24 Level 2 5 | . . 7 . . . . . . . . . 3 56 . 1 Level 3 . | . . . . . . . . . . . . . . . . Level 4 . | . . . . . . . . . . . . . . . . Level 5 . | . . . . . . . . . . . . . . . . High Security . | . . . . . . . . . . . . . . . . Max Security . | . . . . . . . . . . . . . . . . Squads Dispatched 25 | . 1 3 . . 3 6 . . . . 1 5 . . 6 Investigation 12 | . 1 2 . . 2 2 . . . . . 4 . . 1 Extermination 6 | . . . . . 1 2 . . . . 1 . . . 2 Reinforcement 5 | . . 1 . . . 2 . . . . . 1 . . 1 Assault 1 | . . . . . . . . . . . . . . . 1 Garrison 1 | . . . . . . . . . . . . . . . 1 Intercept . | . . . . . . . . . . . . . . . . Searches Triggered . | . . . . . . . . . . . . . . . . Construction Impeded 3 | . . . . . . 2 . . . . . 1 . . . Haulers Reinforced . | . . . . . . . . . . . . . . . . Active Scanning Responses . | . . . . . . . . . . . . . . . . Cargo Convoy Interrupts . | . . . . . . . . . . . . . . . . Stealth | -11 -10 -9 -8 -7 -6 -5 -5 -5 -5 -4 -4 -4 -4 -4 -4 --------- Run | Scr Mat Mat Mat Fac Fac Fac Upp Upp War Pro Fac Ext Cet Arc Hub Distress Signals 7 | . . 1 . . 1 1 . . . . . 3 1 . . Communications Jammed . | . . . . . . . . . . . . . . . . Distress Signals . | . . . . . . . . . . . . . . . . Times Spotted 241 | . 10 17 6 . 20 23 5 1 31 . 9 42 17 29 31 Peak Tracking Total 15 | . 4 3 2 . 4 4 4 2 10 . 3 12 5 2 15 Tactical Retreats 8 | . 1 . 1 . 2 . . . 1 . . 2 . . 1 Traps | -11 -10 -9 -8 -7 -6 -5 -5 -5 -5 -4 -4 -4 -4 -4 -4 ------- Run | Scr Mat Mat Mat Fac Fac Fac Upp Upp War Pro Fac Ext Cet Arc Hub Traps Triggered 3 | . . 1 . . 1 . . . . . . 1 . . . Indirectly . | . . . . . . . . . . . . . . . . Trap Hack Attempts . | . . . . . . . . . . . . . . . . Triggered . | . . . . . . . . . . . . . . . . Disarmed . | . . . . . . . . . . . . . . . . Reprogrammed 4 | . . 4 . . . . . . . . . . . . . Reused 1 | . . 1 . . . . . . . . . . . . . Traps Extracted . | . . . . . . . . . . . . . . . . Installed . | . . . . . . . . . . . . . . . . Triggered 17 | . . 1 . . . . . . 16 . . . . . . Machines | -11 -10 -9 -8 -7 -6 -5 -5 -5 -5 -4 -4 -4 -4 -4 -4 ---------- Run | Scr Mat Mat Mat Fac Fac Fac Upp Upp War Pro Fac Ext Cet Arc Hub Machines Disabled 18 | . . 2 . . 3 4 . . . . 1 4 1 1 2 Max in Single Turn 4 | . . 1 . . 2 4 . . . . 1 1 . 1 1 Garrison Access 1 | . . . . . . . . . . . . . . . 1 Network Hub 1 | . . . . . . . . . . . . . . . 1 Machines Sabotaged . | . . . . . . . . . . . . . . . . Garrisons Compromised . | . . . . . . . . . . . . . . . . Overloaded Fab Kills . | . . . . . . . . . . . . . . . . Hacking | -11 -10 -9 -8 -7 -6 -5 -5 -5 -5 -4 -4 -4 -4 -4 -4 --------- Run | Scr Mat Mat Mat Fac Fac Fac Upp Upp War Pro Fac Ext Cet Arc Hub Machines Accessed 44 | . 2 7 . 1 4 5 1 . 8 . 2 9 2 1 2 Terminals 21 | . 2 4 . . . 2 . . . . 1 8 2 . 2 Fabricators 2 | . . . . 1 . . . . . . 1 . . . . Repair Stations 3 | . . . . . 1 2 . . . . . . . . . Recycling Units 5 | . . 1 . . 3 . . . . . . 1 . . . Scanalyzers 3 | . . 2 . . . 1 . . . . . . . . . Garrison Access . | . . . . . . . . . . . . . . . . Total Hacks 135 | . 5 24 . 3 10 15 1 . 14 . 7 23 4 25 4 Successful 99 | . 4 20 . 3 7 9 1 . 14 . 2 9 4 25 1 Failed 36 | . 1 4 . . 3 6 . . . . 5 14 . . 3 Catastrophic 4 | . . . . . . 1 . . . . . 2 . . 1 Database Lockouts . | . . . . . . . . . . . . . . . . Manual 31 | . . 7 . . 2 3 . . . . 5 8 2 4 . Terminals 56 | . 5 12 . . . 5 . . . . 5 21 4 . 4 Fabricators 5 | . . . . 3 . . . . . . 2 . . . . Repair Stations 10 | . . . . . 3 7 . . . . . . . . . Recycling Units 11 | . . 2 . . 7 . . . . . . 2 . . . Scanalyzers 13 | . . 10 . . . 3 . . . . . . . . . Garrison Access . | . . . . . . . . . . . . . . . . Terminal Hacks 66 | . 4 8 . . . . 1 . 14 . 2 7 4 25 1 Record 44 | . 1 . . . . . 1 . 13 . . 1 3 25 . Robot Analysis 2 | . . . . . . . . . . . . 2 . . . Prototype ID Bank 3 | . . 2 . . . . . . . . . 1 . . . Open Door 4 | . . . . . . . . . 1 . . 2 1 . . Level Access Points 1 | . . . . . . . . . . . 1 . . . . Unreport Threat 3 | . . 2 . . . . . . . . 1 . . . . Locate Traps 2 | . . 1 . . . . . . . . . 1 . . . Reprogram Traps 1 | . . 1 . . . . . . . . . . . . . Dispatch Records 1 | . 1 . . . . . . . . . . . . . . Recall Investigation 1 | . . 1 . . . . . . . . . . . . . Hauler Manifests 1 | . 1 . . . . . . . . . . . . . . Registered Components 1 | . 1 . . . . . . . . . . . . . . Registered Prototypes 1 | . . 1 . . . . . . . . . . . . . Zone Layout 1 | . . . . . . . . . . . . . . . 1 Fabricator Hacks 3 | . . . . 3 . . . . . . . . . . . Network Status 1 | . . . . 1 . . . . . . . . . . . Load Schematic 1 | . . . . 1 . . . . . . . . . . . Build 1 | . . . . 1 . . . . . . . . . . . Repair Station Hacks 8 | . . . . . 2 6 . . . . . . . . . Scan Component 4 | . . . . . 1 3 . . . . . . . . . Repair 4 | . . . . . 1 3 . . . . . . . . . Recycling Unit Hacks 6 | . . 2 . . 3 . . . . . . 1 . . . Report Inventory 5 | . . 2 . . 2 . . . . . . 1 . . . Retrieve Components 1 | . . . . . 1 . . . . . . . . . . Scanalyzer 13 | . . 10 . . . 3 . . . . . . . . . Insert Component 7 | . . 5 . . . 2 . . . . . . . . . Analyze 6 | . . 5 . . . 1 . . . . . . . . . Garrison Access Hacks . | . . . . . . . . . . . . . . . . Unauthorized Hacks 3 | . . . . . 2 . . . . . . 1 . . . Terminals . | . . . . . . . . . . . . . . . . Fabricators . | . . . . . . . . . . . . . . . . Repair Stations . | . . . . . . . . . . . . . . . . Recycling Units 3 | . . . . . 2 . . . . . . 1 . . . Monitor 1 | . . . . . 1 . . . . . . . . . . Reject 2 | . . . . . 1 . . . . . . 1 . . . Scanalyzers . | . . . . . . . . . . . . . . . . Garrison Access . | . . . . . . . . . . . . . . . . Data Cores Recovered . | . . . . . . . . . . . . . . . . Used . | . . . . . . . . . . . . . . . . Hacking Detections 31 | . 2 7 . 1 3 5 . . . . 2 8 1 . 2 Full Trace Events 9 | . 1 2 . . 1 2 . . . . . 3 . . . Feedback Events . | . . . . . . . . . . . . . . . . Feedback Blocked . | . . . . . . . . . . . . . . . . Robot Schematics Acquired . | . . . . . . . . . . . . . . . . Robots Built . | . . . . . . . . . . . . . . . . Authchips . | . . . . . . . . . . . . . . . . Time . | . . . . . . . . . . . . . . . . Total Robot Build Rating . | . . . . . . . . . . . . . . . . Part Schematics Acquired 6 | . . 5 . . . 1 . . . . . . . . . Parts Built 1 | . . . . 1 . . . . . . . . . . . Authchips . | . . . . . . . . . . . . . . . . Time 49 | . . . . 49 . . . . . . . . . . . Total Part Build Rating 2 | . . . . 2 . . . . . . . . . . . Parts Repaired 4 | . . . . . 1 3 . . . . . . . . . Time 77 | . . . . . 8 69 . . . . . . . . . Parts Recycled . | . . . . . . . . . . . . . . . . Recycled Matter . | . . . . . . . . . . . . . . . . Retrieved Matter . | . . . . . . . . . . . . . . . . Retrieved Components 4 | . . . . . 4 . . . . . . . . . . Parts Scanalyzed 6 | . . 5 . . . 1 . . . . . . . . . Part Schematics Acquired 6 | . . 5 . . . 1 . . . . . . . . . Parts Damaged . | . . . . . . . . . . . . . . . . Bothacking | -11 -10 -9 -8 -7 -6 -5 -5 -5 -5 -4 -4 -4 -4 -4 -4 ------------ Run | Scr Mat Mat Mat Fac Fac Fac Upp Upp War Pro Fac Ext Cet Arc Hub Used RIF Installer . | . . . . . . . . . . . . . . . . Robots Hacked . | . . . . . . . . . . . . . . . . Non-combat . | . . . . . . . . . . . . . . . . Combat . | . . . . . . . . . . . . . . . . Robot Hacks Applied . | . . . . . . . . . . . . . . . . Relay Couplers Released 3 | . . . . . . . . . . . . . . . 3 Machine Destruction 3 | . . . . . . . . . . . . . . . 3 Fabnet Peak Effective % . | . . . . . . . . . . . . . . . . Robots Rewired 4 | . . . . . . . . . 4 . . . . . . Allies Hacked . | . . . . . . . . . . . . . . . . Hacks Repelled . | . . . . . . . . . . . . . . . . Allies | -11 -10 -9 -8 -7 -6 -5 -5 -5 -5 -4 -4 -4 -4 -4 -4 -------- Run | Scr Mat Mat Mat Fac Fac Fac Upp Upp War Pro Fac Ext Cet Arc Hub Total Allies 13 | . . . . . . . . . 4 . . 4 5 . . Largest Group 5 | . . . . . . . . . 4 1 1 3 5 4 3 Highest-Rated Group 423 | . . . . . . . . . 244 65 65 261 423 423 288 Highest-Rated Ally 159 | . . . . . . . . . 65 65 65 159 159 135 96 Total Orders . | . . . . . . . . . . . . . . . . Ally Attacks 151 | . . . . . . . . . 4 . . 29 73 16 29 Total Damage 4875 | . . . . . . . . . 92 . . 702 2150 750 1181 Kills 26 | . . . . . . . . . 1 . . 6 9 4 6 Allies Corrupted . | . . . . . . . . . . . . . . . . Allies Melted 3 | . . . . . . . . . 3 . . . . . . Intel | -11 -10 -9 -8 -7 -6 -5 -5 -5 -5 -4 -4 -4 -4 -4 -4 ------- Run | Scr Mat Mat Mat Fac Fac Fac Upp Upp War Pro Fac Ext Cet Arc Hub Robot Analysis Total 2 | . . . . . . . . . . . . 2 . . . Derelict Logs Recovered 4 | . . . . . . . 1 1 . 2 . . . . . Drone Launches . | . . . . . . . . . . . . . . . . Drone Recoveries . | . . . . . . . . . . . . . . . . Exploration | -11 -10 -9 -8 -7 -6 -5 -5 -5 -5 -4 -4 -4 -4 -4 -4 ------------- Run | Scr Mat Mat Mat Fac Fac Fac Upp Upp War Pro Fac Ext Cet Arc Hub Turns Passed 11386 | 98 388 926 279 112 965 1172 1031 717 1170 599 601 1414 534 907 473 Spaces Moved 5474 | 52 173 439 124 37 422 496 613 423 598 355 293 549 207 490 203 Core 11 | 8 . . . . . . . . . . . . . . 3 Treads 5463 | 44 173 439 124 37 422 496 613 423 598 355 293 549 207 490 200 Legs . | . . . . . . . . . . . . . . . . Wheels . | . . . . . . . . . . . . . . . . Hover . | . . . . . . . . . . . . . . . . Flight . | . . . . . . . . . . . . . . . . Fastest Speed 50 | 50 160 160 160 160 160 160 160 160 160 167 167 162 162 162 162 Average Speed 165 | 163 160 160 160 160 160 160 160 160 161 167 167 169 224 165 179 Slowest Speed 750 | 250 160 160 160 160 160 160 160 160 167 167 167 250 242 242 750 Overloaded Moves . | . . . . . . . . . . . . . . . . Propulsion Burnouts . | . . . . . . . . . . . . . . . . Robots Hopped . | . . . . . . . . . . . . . . . . Cave-ins Triggered . | . . . . . . . . . . . . . . . . Exploration Rate (%) 41 | 4 39 30 14 1 10 17 80 59 71 61 9 76 71 96 31 Regions Visited 15 Branch Regions 8 Pre-discovered Areas . | . . . . . . . . . . . . . . . . Known Exits Taken 15 | 1 1 1 1 1 1 1 1 1 1 1 1 1 1 1 . Unknown Exits Taken . | . . . . . . . . . . . . . . . . Scrap Searched 11 | . . . . . . . 4 4 . 3 . . . . . Spaces Dug 11 | . . . . . . . 1 . . 1 2 1 . . 6 Terrain Destroyed 177 | . . 17 13 . 21 58 1 . . 1 6 41 2 2 15 Melee 8 | . . . . . . . 1 . . 1 2 1 . . 3 Projectile 34 | . . . . . . 1 . . . . . 17 2 2 12 AOE 135 | . . 17 13 . 21 57 . . . . 4 23 . . . Terrain Rammed . | . . . . . . . . . . . . . . . . Walls Destroyed . | . . . . . . . . . . . . . . . . Machines Disabled . | . . . . . . . . . . . . . . . . Actions | -11 -10 -9 -8 -7 -6 -5 -5 -5 -5 -4 -4 -4 -4 -4 -4 --------- Run | Scr Mat Mat Mat Fac Fac Fac Upp Upp War Pro Fac Ext Cet Arc Hub Total 6991 | 62 228 604 182 89 640 739 647 466 767 358 364 787 245 556 257 Wait 674 | . 10 102 39 49 126 140 12 32 78 . 27 36 2 18 3 Move 5459 | 51 172 438 123 36 421 495 612 422 597 354 292 548 206 489 203 Hop . | . . . . . . . . . . . . . . . . Pick Up 76 | 4 6 8 3 1 12 6 3 4 3 . 7 15 1 1 2 Fast Attach 66 | 7 4 4 . . 6 4 2 1 5 . . 17 6 4 6 Attach 39 | . . 5 2 2 2 7 . . . . 2 12 . . 7 Detach 17 | . 2 4 . . 1 3 . 1 . . . 5 1 . . Swap 82 | . 1 2 3 1 15 16 3 1 6 3 11 13 3 2 2 Drop 117 | . 3 12 1 . 21 7 6 5 13 . 6 21 9 7 6 Fire 356 | . 30 29 9 . 35 59 8 . 17 . 17 107 17 6 22 Melee 16 | . . . . . . . 1 . . 1 2 8 . . 4 Ram . | . . . . . . . . . . . . . . . . Kick . | . . . . . . . . . . . . . . . . Crush 41 | . . . 2 . 1 2 . . . . . 5 . 29 2 Escape Stasis . | . . . . . . . . . . . . . . . . Rewire 48 | . . . . . . . . . 48 . . . . . . Trap . | . . . . . . . . . . . . . . . . Miscellaneous . | . . . . . . . . . . . . . . . . Route ------- -11/Scrapyard -10/Materials -9/Materials (discovered 2 exits: *Mat / *Min) -8/Materials -7/Factory -6/Factory -5/Factory -5/Upper Caves -5/Upper Caves (discovered 2 exits: *Fac / *War) -5/Warlord -4/Proximity Caves -4/Factory (discovered 6 exits: Res x4 / Upp / *Ext) -4/Extension (discovered 2 exits: *Res / *Cet) -4/Cetus -4/Archives (discovered 3 exits: *Res / *Hub x2) -4/Hub_04(d) (discovered 1 exit: *Res) History --------- Turn | Location | Event 39 | -11/Scrapyard | Identified exit to Materials 39 | -11/Scrapyard | Discovered exit to Materials (range 13) 99 | -11/Scrapyard | Entered Materials 99 | -10/Materials | Evolved 1 slot: Weapon x1 459 | -10/Materials | Identified exit to Materials 459 | -10/Materials | Discovered exit to Materials (range 3) 487 | -10/Materials | Entered another Materials area 487 | -9/Materials | Evolved 2 slots: Utility x2 810 | -9/Materials | Build established: Hacker-Tank 1081 | -9/Materials | Identified exit to Mines 1081 | -9/Materials | Discovered exit to Mines (range 16) 1400 | -9/Materials | Identified exit to Materials 1400 | -9/Materials | Discovered exit to Materials (range 9) 1413 | -9/Materials | Entered another Materials area 1413 | -8/Materials | Evolved 2 slots: Utility x2 1614 | -8/Materials | Identified exit to Factory 1614 | -8/Materials | Discovered exit to Factory (range 16) 1692 | -8/Materials | Entered Factory 1692 | -7/Factory | Evolved 2 slots: Propulsion x2 1764 | -7/Factory | Fabricated Imp. EM Shotgun (x1) 1784 | -7/Factory | Identified exit to Factory 1784 | -7/Factory | Discovered exit to Factory (range 13) 1804 | -7/Factory | Entered another Factory area 1804 | -6/Factory | Evolved 2 slots: Utility x2 2114 | -6/Factory | Build established: Hacker-Skirmisher 2302 | -6/Factory | Repaired Weapon Shielding 2754 | -6/Factory | Identified exit to Factory 2754 | -6/Factory | Discovered exit to Factory (range 5) 2769 | -6/Factory | Entered another Factory area 2769 | -5/Factory | Evolved 2 slots: Utility x2 3022 | -5/Factory | Spotted B-75 Beast 3034 | -5/Factory | Repaired Imp. Heavy Armor Plating 3186 | -5/Factory | Destroyed B-75 Beast 3508 | -5/Factory | Repaired Lightning Gun 3531 | -5/Factory | Repaired Lightning Gun 3888 | -5/Factory | Identified exit to Upper Caves 3888 | -5/Factory | Discovered exit to Upper Caves (range 5) 3941 | -5/Factory | Entered Upper Caves 4088 | -5/Upper Caves | Build established: Scavenger-Tank 4263 | -5/Upper Caves | Learned location of 1 exit from Factory 4404 | -5/Upper Caves | Identified exit to Upper Caves 4404 | -5/Upper Caves | Discovered exit to Upper Caves (range 8) 4535 | -5/Upper Caves | Attracted the attention of an 0b10 checkpoint 4972 | -5/Upper Caves | Entered another Upper Caves area 5120 | -5/Upper Caves | Learned Factory terminal intel 5128 | -5/Upper Caves | Identified exit to Factory 5128 | -5/Upper Caves | Discovered exit to Factory (range 9) 5324 | -5/Upper Caves | Build established: Hacker-Tank 5602 | -5/Upper Caves | Encountered a Warlord checkpoint 5646 | -5/Upper Caves | Identified exit to Warlord 5646 | -5/Upper Caves | Discovered exit to Warlord (range 12) 5689 | -5/Upper Caves | Entered Warlord 5761 | -5/Warlord | System corruption cleaned by Quarantine Array 5940 | -5/Warlord | Visited the Vortex Lab 5953 | -5/Warlord | Warlord's base attacked by MAIN.C 5962 | -5/Warlord | Found Prototype Energy Gun 5962 | -5/Warlord | Identified Vortex Shotgun 5966 | -5/Warlord | Found Vortex Shotgun 6079 | -5/Warlord | Learned Research emergency access door positions 6079 | -5/Warlord | Learned Armory stockpile data 6083 | -5/Warlord | Learned 4 Research zone layouts 6083 | -5/Warlord | Learned 4 Research zone layouts 6083 | -5/Warlord | Learned Armory security intel 6083 | -5/Warlord | Learned Armory recycling unit intel 6083 | -5/Warlord | Learned Research fabricator intel 6083 | -5/Warlord | Learned Research repair station intel 6295 | -5/Warlord | Met Warlord 6303 | -5/Warlord | Warlord forces counterattacked 6431 | -5/Warlord | Spotted Striker 6437 | -5/Warlord | Destroyed Striker 6441 | -5/Warlord | Spotted Executioner 6490 | -5/Warlord | Spotted Striker 6566 | -5/Warlord | Spotted Striker 6628 | -5/Warlord | Warlord base infiltrated, sounded retreat 6634 | -5/Warlord | Spotted Executioner 6782 | -5/Warlord | Build established: Scavenger-Tank 6847 | -5/Warlord | Identified exit to Proximity Caves 6847 | -5/Warlord | Discovered exit to Proximity Caves (range 8) 6859 | -5/Warlord | Entered Proximity Caves 6859 | -4/Proximity Caves | Accompanied by 1 ally 6861 | -4/Proximity Caves | Learned location of 1 exit from Research 7091 | -4/Proximity Caves | Learned Research terminal intel 7398 | -4/Proximity Caves | Discovered exit to Factory (range 15) 7458 | -4/Proximity Caves | Entered Factory 7458 | -4/Factory | Accompanied by 1 ally 7458 | -4/Factory | Evolved 2 slots: Power x1, Utility x1 7459 | -4/Factory | Identified exit to Upper Caves 7460 | -4/Factory | Loaded intel: 28 terminal locations 7510 | -4/Factory | Identified exit to Research 7892 | -4/Factory | Identified exit to Extension 7892 | -4/Factory | Discovered exit to Extension (range 16) 8059 | -4/Factory | Entered Extension 8561 | -4/Extension | Destroyed 10 combat bots 8616 | -4/Extension | Lost 13 parts (1p7u5w) 8709 | -4/Extension | Disrupted transfer network 8737 | -4/Extension | Rescued a captive Derelict 8741 | -4/Extension | Spotted B-86 Titan 8746 | -4/Extension | Spotted B-86 Titan 8754 | -4/Extension | Destroyed B-86 Titan 8793 | -4/Extension | Destroyed B-86 Titan 8853 | -4/Extension | Lost 3 parts (1p1n1u) 8857 | -4/Extension | Destroyed 8 combat bots 8892 | -4/Extension | Found Hvy. Reflective Plating 9151 | -4/Extension | Rescued a captive Derelict 9152 | -4/Extension | Rescued a captive Derelict 9191 | -4/Extension | Build established: Scavenger-Skirmisher 9241 | -4/Extension | Rescued A7 9359 | -4/Extension | Discovered exit to Research (range 10) 9361 | -4/Extension | Identified exit to Cetus 9361 | -4/Extension | Discovered exit to Cetus (range 7) 9472 | -4/Extension | Disrupted transfer network 9473 | -4/Extension | Entered Cetus 9473 | -4/Cetus | Accompanied by 3 allies (A7) 9478 | -4/Cetus | Acquired a Cetus Manufacturing Module code from A7 9493 | -4/Cetus | Spotted Cetus Guard 9493 | -4/Cetus | Spotted Cetus Guard 9496 | -4/Cetus | Spotted Cetus Guard 9499 | -4/Cetus | Allies destroyed Cetus Guard 9505 | -4/Cetus | Spotted Cetus Guard 9507 | -4/Cetus | Allies destroyed Cetus Guard 9513 | -4/Cetus | Destroyed Cetus Guard 9521 | -4/Cetus | Destroyed Cetus Guard 9721 | -4/Cetus | Started Cetus Manufacturing Module 9746 | -4/Cetus | Manufactured an Enhanced Grunt 9746 | -4/Cetus | Escorted A7 to Cetus Mainframe 9771 | -4/Cetus | Manufactured an Enhanced Grunt 9796 | -4/Cetus | Manufactured an Enhanced Grunt 9821 | -4/Cetus | Manufactured an Enhanced Grunt 9846 | -4/Cetus | Manufactured an Enhanced Grunt 9893 | -4/Cetus | Build established: Scavenger-Tank 9960 | -4/Cetus | Identified exit to Archives 9960 | -4/Cetus | Discovered exit to Archives (range 15) 10007 | -4/Cetus | Entered Archives 10007 | -4/Archives | Accompanied by 4 allies (A7) 10012 | -4/Archives | Received a hacking code to weaken MAIN.C 10073 | -4/Archives | Unable to access archive contents 10122 | -4/Archives | Unable to access archive contents 10146 | -4/Archives | Identified exit to Hub_04(d) 10146 | -4/Archives | Discovered exit to Hub_04(d) (range 13) 10200 | -4/Archives | Discovered exit to Research (range 14) 10261 | -4/Archives | Discovered exit to Hub_04(d) (range 16) 10271 | -4/Archives | Unable to access archive contents 10274 | -4/Archives | Unable to access archive contents 10292 | -4/Archives | Unable to access archive contents 10914 | -4/Archives | Entered Hub_04(d) 10914 | -4/Hub_04(d) | Accompanied by 3 allies 11172 | -4/Hub_04(d) | Discovered exit to Research (range 15) 11184 | -4/Hub_04(d) | Garrison activated, responded to threat 11302 | -4/Hub_04(d) | Network Hub disabled 11362 | -4/Hub_04(d) | System corruption reached 10% 11362 | -4/Hub_04(d) | Spotted Lightning 11367 | -4/Hub_04(d) | Spotted Lightning 11368 | -4/Hub_04(d) | Spotted Lightning 11373 | -4/Hub_04(d) | Core integrity fell below 50% 11382 | -4/Hub_04(d) | Core integrity fell below 20% 11387 | -4/Hub_04(d) | Destroyed by G-67 Veteran with Plasma Rifle Last Messages --------------- 11372_ Penetrated by EMDS Slug. 11372_ Imp. Medium Treads destroyed. 11372_ EMDS Slug penetrates Backup Mainframe. 11373_ System corrupted: Matter fused (-5). 11373_ Penetrated by EMDS Slug. 11374_ Critical hit (Burn: +37). 11374_ Penetrated by EMDS Slug. 11376_ Critical hit (Burn: +50). 11376_ P-70 Sage resets P-70 Sage, system corruption cleaned. 11376_ Penetrated by EMDS Slug. 11377_ Rnf. Fission Core destroyed. 11377_ Penetrated by EMDS Slug. 11377_ G-67 Veteran destroyed. 11378_ Slug penetrates Backup Mainframe. 11378_ Penetrated by EMDS Slug. 11381_ P-70 Sage resets P-70 Sage, system corruption cleaned. 11381_ Penetrated by Slug. 11381_ Penetrated by EMDS Slug. 11387_ Penetrated by Slug. 11387_ G-67 Veteran destroyed. Map ----- +----------------------------------------------------+ | ???????????????????????????????????? | | ???????????????????????????????????? | | ???????????????????????????????????? | | ???????????????????????????????????? | | ???????????????????????????????????? | | ???????????????????????????????????? | | ???????????????????????????????????? | | ???????????????????????????????????? | | ???????????????????????????????????? | | ???????????????????????????????????? | | ???????????????????????????????????? | | ???????????????????????????????????? | | ???????????????????????????????????? | | ???????????????????????????????????? | | ???????????????????????????????????? | | ???????????????????????????????????? | | ???????????????????????????????????? | | ?????????##????????????????????????? | | ??######## ### #???# # """" | | # ## #???# # """" | | # """" """" ## #???# < + """" | | # """" """" ## #???# =| # """" | | # """" """" ## ##??##![## | | # """" """" # #####/=## | | # gg pihhY/ %%######?##### | | # """" =% @# *=# ##### | | # """" p [ h# #####=%# # | | # """"= g######???#]!# # " | | # """% """ #????????#%!# # " | | # g![ #????????#=%+ # " | | ##/##########????????#%!# # | | # #####????????## ######## | | # "" ########## #######/### | | # T " | | # =%!" | | #! ""# #######+## ########### | | # # !##????# ## #########?? | | # "" =%#?????#" # #?? | | # !####### "" #?? | | ###### # "" ! #?? | | # # """" #?? | | # # """" ""#?? | | # =% ]# ""#?? | | # [ *=%=# """" % "#?? | | # =%[*#!"! #?? | | # !*!%%%!= "##? | | # =%#==!%/* !""# # | | # [![#*%=%! "### | | # =[###=!|! *[ !! #?? | | # #?#######%######?? | +----------------------------------------------------+ Best States ------------- Heat Dissipation 105 Energy Generation 35 Energy Capacity 1225 Matter Stores 300 Matter Capacity 300 Sight Range 16 Robot Scan Range 16 Terrain Scan Range 14 Terrain Scan Density 10 Armor Coverage 1650 Resistance: KI 65 Resistance: TH 60 Resistance: EX 35 Resistance: EM 35 Resistance: I 35 Resistance: S 35 Resistance: P 35 Utility Shielding 33 Weapon Shielding 33 Evasion (%) 40 Targeting Accuracy 5 Target Analysis 9 Recoil Reduction 4 Energy Filtering 30 Particle Charging 25 Offensive Hacking 20 Item Schematics ----------------- EM Shotgun | -9/Materials | Scanalyzed Structural Scanner | -9/Materials | Scanalyzed Med. Storage Unit | -9/Materials | Scanalyzed Utility Shielding | -9/Materials | Scanalyzed Imp. EM Shotgun | -9/Materials | Scanalyzed Shock Rifle | -5/Factory | Scanalyzed Robot Schematics ------------------ None Fabricated ------------ Imp. EM Shotgun | x1 | -7/Factory Alien Tech Used ----------------- None Achievements -------------- None Challenges ------------ None Game ------ Seed CryofiberThunderBeamcaster Manual? 0 Play Time 02:34:21 Cumulative 126.0 hours Start 2022.07.19 @ 20:13:22 End 2022.07.20 @ 00:58:15 Sessions 1 Manual Loads 0 Difficulty Explorer Special Mode None Game No. 164 Rogue 163 Adventurer 0 Explorer 1 Win Type - Total 5 Types 5/0/0/0/0/0/0/0/0 Lore% 60 Gallery% 64 Achievement% 53 Wizard Run 0 Options --------- ASCII 1 Keyboard 1 Movement Numpad Keybinds 0 Fullscreen 1 Font 18/X11 Map View 76x50 Tactical HUD 1 Map Filters NONE Filters NONE Steam 1 RUN: 9b0b2383-b56e-48de-ad80-57dcf2a890d6